fUST/lending_fUST_20250925
["ID","MTS","AMOUNT","RATE_DAILY","PERIOD"]
[387606366,1758785440155,-480.0,0.0001935,2]
[387606368,1758785440165,-480.0,0.0001935,2]
[387606370,1758785440174,-480.0,0.0001935,2]
[387606372,1758785440183,-480.0,0.0001935,2]
[387606374,1758785440193,-484.70908242,0.0001935,2]
[387606376,1758785440202,-485.58738706,0.0001935,2]
[387606378,1758785440212,-483.0766973,0.0001935,2]
[387606380,1758785440222,-480.0,0.0001935,2]
[387606382,1758785440232,-482.05173563,0.0001935,2]
[387606384,1758785440242,-480.0,0.0001935,2]
[387606386,1758785440252,-480.0,0.0001935,2]
[387606388,1758785440262,-483.77704697,0.0001935,2]
[387606390,1758785440271,-480.0,0.0001935,2]
[387606393,1758785440281,-485.26484153,0.0001935,2]
[387606395,1758785440291,-484.76339038,0.0001935,2]
[387606396,1758785440300,-483.62126915,0.0001935,2]
[387606398,1758785440309,-480.0,0.0001935,2]
[387606401,1758785440319,-480.0,0.0001935,2]
[387606402,1758785440329,-480.0,0.0001935,2]
[387606405,1758785440338,-285.10045172,0.0001935,2]
[387606406,1758785440347,-480.0,0.0001935,2]
[387606408,1758785440357,-480.0,0.0001935,2]
[387606410,1758785440367,-481.57333169,0.0001935,2]
[387606413,1758785440376,-480.0,0.0001935,2]
[387606414,1758785440385,-480.0,0.0001935,2]
[387606416,1758785440394,-470.0,0.0001935,2]
[387606418,1758785440404,-481.44874587,0.0001935,2]
[387606420,1758785440413,-481.58112266,0.0001935,2]
[387606422,1758785440422,-480.0,0.0001935,2]
[387606425,1758785440432,-481.95567208,0.0001935,2]
[387606427,1758785440441,-480.91061569,0.0001935,2]
[387606428,1758785440451,-515.99666519,0.0001935,2]
[387606431,1758785440460,-480.0,0.0001935,2]
[387606432,1758785440470,-480.0,0.0001935,2]
[387606434,1758785440479,-620.64677986,0.0001935,2]
[387606435,1758785440488,-480.0,0.0001935,2]
[387606436,1758785440498,-480.0,0.0001935,2]
[387606437,1758785440507,-547.32062735,0.0001935,2]
[387606438,1758785440516,-480.0,0.0001935,2]
[387606439,1758785440526,-501.19,0.0001935,2]
[387606440,1758785440535,-493.87007136,0.0001935,2]
[387606441,1758785440545,-480.0,0.0001935,2]
[387606442,1758785440554,-480.0,0.0001935,2]
[387606443,1758785440563,-487.18940377,0.0001935,2]
[387606444,1758785440573,-485.65973194,0.0001935,2]
[387606445,1758785440582,-480.0,0.00019351,2]
[387606446,1758785440591,-480.0,0.00019351,2]
[387606447,1758785440601,-466.58830105,0.00019351,2]
[387606448,1758785440610,-480.0,0.00019351,2]
[387606449,1758785440619,-174.83376275,0.00019351,2]
[387606450,1758785440628,-480.0,0.00019351,2]
[387606451,1758785440637,-480.0,0.00019351,2]
[387606452,1758785440646,-484.54222868,0.00019351,2]
[387606453,1758785440657,-443.38317212,0.00019351,2]
[387606454,1758785440671,-584.64556439,0.00019351,2]
[387606455,1758785440681,-192.37265533,0.00019351,2]
[387606456,1758785440699,-289.54700005,0.00019351,2]
[387606457,1758785440708,-270.67386163,0.00019351,2]
[387606458,1758785440720,-219.40397495,0.00019351,2]
[387606459,1758785440730,-480.0,0.00019351,2]
[387606460,1758785440739,-480.0,0.00019351,2]
[387606461,1758785440748,-480.0,0.00019351,2]
[387606462,1758785440757,-482.45419076,0.00019351,2]
[387606463,1758785440767,-482.82235318,0.00019351,2]
[387606464,1758785440776,-255.57,0.00019351,2]
[387606465,1758785440785,-412.97743831,0.00019351,2]
[387606466,1758785440795,-480.0,0.00019351,2]
[387606467,1758785440804,-480.0,0.00019351,2]
[387606468,1758785440814,-480.0,0.00019351,2]
[387606469,1758785440823,-480.0,0.00019351,2]
[387606470,1758785440833,-480.0,0.00019351,2]
[387606471,1758785440843,-480.0,0.00019351,2]
[387606472,1758785440852,-480.0,0.00019351,2]
[387606473,1758785440861,-480.0,0.00019351,2]
[387606474,1758785440871,-480.0,0.00019351,2]
[387606475,1758785440880,-480.0,0.00019351,2]
[387606476,1758785440889,-500.67,0.00019351,2]
[387606477,1758785440899,-480.0,0.00019351,2]
[387606478,1758785440908,-496.85975206,0.00019351,2]
[387606479,1758785440918,-480.0,0.00019351,2]
[387606480,1758785440927,-480.0,0.00019351,2]
[387606481,1758785440937,-480.0,0.00019351,2]
[387606482,1758785440947,-1564.03,0.00019351,2]
[387606483,1758785440956,-480.0,0.00019351,2]
[387606484,1758785440966,-480.0,0.00019351,2]
[387606485,1758785440976,-480.0,0.00019351,2]
[387606486,1758785440985,-485.76305884,0.00019351,2]
[387606487,1758785440995,-480.0,0.00019351,2]
[387606488,1758785441005,-480.0,0.00019351,2]
[387606489,1758785441014,-480.0,0.00019351,2]
[387606490,1758785441024,-480.0,0.00019351,2]
[387606491,1758785441115,-561.09,0.00019351,2]
[387606492,1758785441125,-480.0,0.00019351,2]
[387606493,1758785441134,-482.33416018,0.00019351,2]
[387606494,1758785441143,-480.0,0.00019351,2]
[387606495,1758785441153,-480.0,0.00019351,2]
[387606496,1758785441162,-480.0,0.00019351,2]
[387606497,1758785441171,-480.0,0.00019351,2]
[387606498,1758785441180,-480.0,0.00019351,2]
[387606500,1758785441189,-485.51036026,0.00019351,2]
[387606502,1758785441199,-480.0,0.00019351,2]
[387606504,1758785441208,-485.02190833,0.00019351,2]
[387606506,1758785441218,-480.0,0.00019351,2]
[387606508,1758785441226,-484.50688877,0.00019351,2]
[387606511,1758785441245,-167.38094448,0.00019351,2]
[387606513,1758785441255,-500.0,0.00019351,2]
[387606515,1758785441264,-221.94341719,0.00019351,2]
[387606521,1758785441312,-17.7090298,0.00019351,2]
[387606523,1758785441324,-120.07468622,0.00019351,2]
[387606525,1758785441334,-500.0,0.00019351,2]
[387606527,1758785441344,-500.0,0.00019351,2]
[387606529,1758785441353,-500.0,0.00019351,2]
[387606531,1758785441363,-500.0,0.00019351,2]
[387606533,1758785441372,-500.0,0.00019351,2]
[387606535,1758785441382,-500.0,0.00019351,2]
[387606537,1758785441391,-370000.0,0.00019352,2]
[387606539,1758785441401,-506.92875789,0.00019373,2]
[387606541,1758785441411,-500.0,0.00019373,2]
[387606543,1758785441420,-500.77160438,0.00019373,2]
[387606545,1758785441429,-394.58552777,0.00019373,2]
[387606547,1758785441439,-501.69416085,0.00019373,2]
[387606549,1758785441448,-500.0,0.00019373,2]
[387606551,1758785441458,-500.0,0.00019373,2]
[387606553,1758785441467,-500.0,0.00019373,2]
[387606555,1758785441477,-508.70507964,0.00019373,2]
[387606557,1758785441487,-500.0,0.00019373,2]
[387606559,1758785441496,-432.43637156,0.00019373,2]
[387606561,1758785441506,-480.0,0.00019622,2]
[387606563,1758785441515,-625.4741397,0.00019622,2]
[387606565,1758785441527,-480.0,0.00019622,2]
[387606567,1758785441536,-480.0,0.00019622,2]
[387606569,1758785441545,-190.89602151,0.00019622,2]
[387606571,1758785441554,-527.43552407,0.00019622,2]
[387606573,1758785441564,-480.0,0.00019622,2]
[387606575,1758785441573,-480.0,0.00019622,2]
[387606577,1758785441583,-480.0,0.00019622,2]
[387606579,1758785441593,-480.0,0.00019622,2]
[387606581,1758785441602,-480.0,0.00019622,2]
[387606583,1758785441611,-480.0,0.00019622,2]
[387606585,1758785441620,-480.0,0.00019622,2]
[387606587,1758785441629,-494.29,0.00019622,2]
[387606589,1758785441639,-480.0,0.00019622,2]
[387606591,1758785441648,-480.0,0.00019622,2]
[387606593,1758785441658,-504.88176214,0.00019623,2]
[387606595,1758785441675,-480.0,0.00019623,2]
[387606597,1758785441684,-480.0,0.00019623,2]
[387606599,1758785441693,-480.0,0.00019623,2]
[387606601,1758785441702,-508.19,0.00019623,2]
[387606603,1758785441713,-480.0,0.00019623,2]
[387606605,1758785441723,-480.0,0.00019623,2]
[387606607,1758785441732,-480.0,0.00019623,2]
[387606609,1758785441742,-369.5317252,0.00019624,2]
[387606611,1758785441752,-480.0,0.00019624,2]
[387606613,1758785441761,-480.0,0.00019624,2]
[387606615,1758785441771,-459.42238123,0.00019625,2]
[387606617,1758785441780,-480.0,0.00019625,2]
[387606619,1758785441789,-248.49,0.00019625,2]
[387606621,1758785441799,-1564.03,0.00019625,2]
[387606623,1758785441808,-561.09,0.00019625,2]
[387606625,1758785441817,-488.77372263,0.00019892,2]
[387606627,1758785441826,-480.0,0.00019892,2]
[387606629,1758785441836,-480.0,0.00019892,2]
[387606631,1758785441845,-480.0,0.00019896,2]
[387606633,1758785441855,-480.0,0.00019896,2]
[387606635,1758785441864,-484.37,0.00019896,2]
[387606637,1758785441874,-480.0,0.00019896,2]
[387606639,1758785441883,-480.0,0.00019896,2]
[387606641,1758785441893,-480.0,0.00019896,2]
[387606643,1758785441902,-480.0,0.00019896,2]
[387606645,1758785441911,-480.0,0.00019896,2]
[387606647,1758785441920,-480.0,0.00019896,2]
[387606649,1758785441929,-625.93806075,0.00019897,2]
[387606651,1758785441939,-480.0,0.00019897,2]
[387606652,1758785441948,-480.0,0.00019897,2]
[387606655,1758785441957,-480.0,0.00019897,2]
[387606656,1758785441967,-296.8550685,0.00019897,2]
[387606659,1758785441976,-480.0,0.00019898,2]
[387606660,1758785441985,-480.0,0.00019898,2]
[387606663,1758785441995,-480.0,0.00019899,2]
[387606665,1758785442004,-1564.03,0.00019899,2]
[387606666,1758785442013,-561.09,0.00019899,2]
[387606668,1758785442022,-1000.0,0.00019921,2]
[387606670,1758785442032,-500.0,0.00019921,2]
[387606673,1758785442041,-1000.0,0.00019921,2]
[387606675,1758785442050,-1000.0,0.00019921,2]
[387606676,1758785442060,-501.7698393,0.00019973,2]
[387606679,1758785442070,-500.0,0.00019973,2]
[387606681,1758785442079,-238.57457338,0.00019973,2]
[387606683,1758785442088,-406.79269329,0.00019973,2]
[387606684,1758785442097,-100000.0,0.0001999,2]
[387606687,1758785442108,-12874.91687322,0.00020053,2]
[387606689,1758785442117,-480.0,0.0002017,2]
[387606691,1758785442127,-480.0,0.0002017,2]
[387606693,1758785442136,-597.6536023,0.0002017,2]
[387606695,1758785442149,-480.0,0.0002017,2]
[387606697,1758785442161,-480.0,0.0002017,2]
[387606700,1758785442173,-520.0,0.00020171,2]
[387606702,1758785442185,-480.0,0.00020171,2]
[387606704,1758785442198,-480.0,0.00020172,2]
[387606706,1758785442208,-480.0,0.00020172,2]
[387606708,1758785442219,-1564.03,0.00020173,2]
[387606710,1758785442232,-561.09,0.00020173,2]
[387606713,1758785442243,-1000.0,0.00020396,2]
[387606715,1758785442255,-480.0,0.00020444,2]
[387606717,1758785442266,-480.0,0.00020444,2]
[387606719,1758785442278,-480.0,0.00020444,2]
[387606721,1758785442290,-480.0,0.00020444,2]
[387606724,1758785442301,-480.0,0.00020445,2]
[387606726,1758785442312,-322.52211991,0.00020446,2]
[387606728,1758785442324,-1564.03,0.00020447,2]
[387606730,1758785442336,-561.09,0.00020447,2]
[387606733,1758785442348,-500.0,0.00020468,2]
[387606735,1758785442359,-500.0,0.00020468,2]
[387606737,1758785442370,-1500.0,0.00020468,2]
[387606739,1758785442381,-504.83976007,0.00020521,2]
[387606741,1758785442393,-500.0,0.00020543,2]
[387606744,1758785442405,-500.0,0.00020543,2]
[387606746,1758785442415,-853.86617924,0.00020662,2]
[387606748,1758785442426,-480.0,0.00020718,2]
[387606750,1758785442440,-480.0,0.00020718,2]
[387606753,1758785442451,-480.0,0.00020718,2]
[387606755,1758785442462,-480.0,0.00020719,2]
[387606757,1758785442474,-1564.03,0.00020721,2]
[387606759,1758785442485,-561.09,0.00020721,2]
[387606761,1758785442495,-150.0,0.00020819,2]
[387606763,1758785442505,-160.0,0.0002082,2]
[387606766,1758785442516,-480.0,0.00020992,2]
[387606768,1758785442527,-480.0,0.00020992,2]
[387606770,1758785442538,-480.0,0.00020992,2]
[387606772,1758785442550,-480.0,0.00020993,2]
[387606775,1758785442561,-1564.03,0.00020995,2]
[387606777,1758785442573,-561.09,0.00020995,2]
[387606779,1758785442585,-195.915342,0.00021,5]
[387606781,1758785442596,-688.67808718,0.00021,10]
[387606784,1758785442608,-1000.0,0.00021091,2]
[387606786,1758785442620,-1000.0,0.00021091,2]
[387606788,1758785442633,-480.0,0.00021266,2]
[387606791,1758785442645,-299.51374591,0.00021266,2]
[387606793,1758785442657,-236.0711418,0.00021266,2]
[387606795,1758785442672,-500.0,0.00021267,2]
[387606797,1758785442682,-571.63619755,0.00021267,2]
[387606799,1758785442692,-480.0,0.00021267,2]
[387606801,1758785442702,-1564.03,0.00021269,2]
[387606803,1758785442713,-561.09,0.00021269,2]
[387606806,1758785442725,-500.98143617,0.00021317,2]
[387606808,1758785442738,-200.0,0.00021368,2]
[387606810,1758785442750,-500.0,0.00021429,2]
[387606813,1758785442762,-504.46953015,0.00021429,2]
[387606814,1758785442772,-500.0,0.00021429,2]
[387606817,1758785442782,-204.09058571,0.00021492,2]
[387606820,1758785442793,-500.0,0.000215,2]
[387606822,1758785442805,-480.0,0.0002154,2]
[387606825,1758785442816,-480.0,0.00021541,2]
[387606828,1758785442828,-1564.03,0.00021543,2]
[387606833,1758785442838,-561.09,0.00021543,2]
[387606837,1758785442849,-1500.0,0.00021639,2]
[387606840,1758785442859,-1500.0,0.00021639,2]
[387606843,1758785442869,-193.285666,0.00021775,2]
[387606846,1758785442880,-480.0,0.00021814,2]
[387606849,1758785442891,-1000.0,0.00021815,2]
[387606852,1758785442903,-621.30699316,0.00021815,2]
[387606857,1758785442914,-1564.03,0.00021817,2]
[387606860,1758785442924,-561.09,0.00021817,2]
[387606863,1758785442935,-2627.260049,0.00021829,2]
[387606866,1758785442945,-160.0,0.00021897,2]
[387606869,1758785442955,-233.66602051,0.00021897,2]
[387606872,1758785442966,-160.0,0.00021897,2]
[387606875,1758785442976,-160.0,0.00021897,2]
[387606878,1758785442987,-160.0,0.00021898,2]
[387606882,1758785442998,-966.4,0.00022,2]
[387606885,1758785443008,-159.45,0.00022,2]
[387606889,1758785443018,-1837.4924983,0.00022013,2]
[387606892,1758785443029,-1000.0,0.00022048,2]
[387606895,1758785443039,-853.86617924,0.00022051,2]
[387606898,1758785443050,-480.0,0.00022088,2]
[387606901,1758785443061,-1564.03,0.00022091,2]
[387606905,1758785443072,-561.09,0.00022091,2]
[387606908,1758785443082,-1000.0,0.00022187,2]
[387606912,1758785443093,-170.1,0.00022325,3]
[387606915,1758785443105,-480.0,0.00022362,2]
[387606918,1758785443115,-326.53650875,0.00022363,2]
[387606921,1758785443126,-1564.03,0.00022365,2]
[387606925,1758785443137,-561.09,0.00022365,2]
[387606928,1758785443147,-586.2209554,0.00022382,2]
[387606932,1758785443158,-500.0,0.00022444,2]
[387606934,1758785443169,-500.0,0.00022463,2]
[387606936,1758785443180,-774.33341942,0.00022596,2]
[387606938,1758785443190,-409.9999954,0.00022608,2]
[387606941,1758785443201,-150.0,0.00022611,2]
[387606943,1758785443211,-480.0,0.00022636,2]
[387606944,1758785443221,-1564.03,0.00022639,2]
[387606947,1758785443230,-561.09,0.00022639,2]
[387606949,1758785443240,-480.0,0.0002291,2]
[387606951,1758785443249,-1564.03,0.00022913,2]
[387606953,1758785443259,-561.09,0.00022913,2]
[387606955,1758785443268,-500.0,0.00022997,2]
[387606957,1758785443278,-60682.14674846,0.00023,2]
[387606971,1758785443400,-1999.999999,0.00023,2]
[387606974,1758785443411,-159.45,0.00023,2]
[387606976,1758785443421,-182.56495849,0.00023037,2]
[387606977,1758785443430,-500.0,0.00023142,2]
[387606980,1758785443441,-235.40941579,0.00023184,2]
[387606982,1758785443450,-1564.03,0.00023187,2]
[387606984,1758785443460,-561.09,0.00023187,2]
[387606986,1758785443469,-749.71,0.00023287,2]
[387606988,1758785443478,-182.56495849,0.00023315,2]
[387606989,1758785443487,-182.56495849,0.00023315,2]
[387606991,1758785443497,-853.86617924,0.00023439,2]
[387606994,1758785443506,-1564.03,0.00023461,2]
[387606996,1758785443515,-561.09,0.00023461,2]
[387606998,1758785443525,-182.56495849,0.00023592,7]
[387607000,1758785443534,-3685.76385583,0.000237,14]
[387607002,1758785443544,-1564.03,0.00023735,2]
[387607004,1758785443553,-561.09,0.00023735,2]
[387607005,1758785443562,-500.0,0.00023825,2]
[387607007,1758785443571,-159.45,0.00023838,2]
[387607010,1758785443581,-182.56495849,0.00023869,7]
[387607012,1758785443590,-500.0,0.00023883,2]
[387607013,1758785443600,-170.1,0.00023932,4]
[387607015,1758785443610,-661.44,0.00024,14]
[387607018,1758785443620,-1564.03,0.00024009,2]
[387607020,1758785443629,-561.09,0.00024009,2]
[387607021,1758785443639,-614.002,0.00024068,5]
[387607024,1758785443650,-500.0,0.00024074,2]
[387607026,1758785443661,-500.0,0.00024101,2]
[387607028,1758785443674,-273.0,0.0002414,2]
[387607030,1758785443683,-182.56495849,0.00024146,14]
[387607031,1758785443692,-182.56495849,0.00024146,14]
[387607034,1758785443702,-500.0,0.00024199,2]
[387607035,1758785443713,-273.0,0.00024282,2]
[387607038,1758785443723,-1564.03,0.00024283,2]
[387607039,1758785443732,-561.09,0.00024283,2]
[387607041,1758785443743,-151.0,0.000243,6]
[387607043,1758785443753,-574.36899308,0.00024353,2]
[387607046,1758785443763,-273.0,0.00024375,2]
[387607047,1758785443772,-505.61204843,0.00024396,2]
[387607050,1758785443782,-966.4,0.000244,2]
[387607051,1758785443791,-181.07,0.00024503,2]
[387607053,1758785443800,-1564.03,0.00024557,2]
[387607055,1758785443809,-561.09,0.00024557,2]
[387607057,1758785443819,-273.0,0.00024558,2]
[387607059,1758785443828,-273.0,0.00024596,2]
[387607061,1758785443838,-273.0,0.00024602,2]
[387607063,1758785443847,-159.45,0.00024757,2]
[387607065,1758785443857,-273.0,0.00024786,2]
[387607067,1758785443868,-853.86617924,0.00024828,2]
[387607069,1758785443877,-1564.03,0.00024831,2]
[387607071,1758785443887,-561.09,0.00024831,2]
[387607073,1758785443896,-501.7140521,0.00024873,2]
[387607076,1758785443908,-418.60072527,0.00024873,2]
[387607078,1758785443917,-489.84047527,0.00024873,2]
[387607080,1758785443927,-415995.118808,0.000249,2]
[387607082,1758785443936,-151.0,0.000249,7]
[387607084,1758785443946,-151.0,0.000249,7]
[387607085,1758785443955,-465.26178,0.000249,7]
[387607087,1758785443964,-465.26178,0.000249,7]
[387607089,1758785443974,-465.26178,0.000249,7]
[387607090,1758785443983,-465.26178,0.000249,7]
[387607091,1758785443993,-152.174128,0.000249,7]
[387607092,1758785444002,-151.0,0.000249,7]
[387607093,1758785444011,-151.0,0.000249,7]
[387607094,1758785444021,-151.0,0.000249,7]
[387607095,1758785444030,-151.0,0.000249,7]
[387607096,1758785444039,-151.0,0.000249,7]
[387607097,1758785444049,-151.0,0.000249,7]
[387607098,1758785444057,-151.0,0.000249,7]
[387607099,1758785444067,-151.0,0.000249,7]
[387607100,1758785444076,-278.18518,0.000249,7]
[387607101,1758785444086,-151.0,0.000249,7]
[387607102,1758785444095,-151.0,0.000249,7]
[387607103,1758785444104,-153.14851591,0.000249,2]
[387607104,1758785444114,-151.0,0.000249,7]
[387607105,1758785444123,-151.0,0.000249,7]
[387607106,1758785444132,-151.0,0.000249,7]
[387607107,1758785444142,-273.0,0.00024928,2]
[387607108,1758785444153,-5055.27774442,0.00025,30]
[387607109,1758785444162,-4858.1541709,0.0002506,2]
[387607110,1758785444171,-543.1396472,0.0002506,2]
[387607111,1758785444181,-1285.8829286,0.00025068,2]
[387607112,1758785444191,-1564.03,0.00025105,2]
[387607113,1758785444200,-561.09,0.00025105,2]
[387607114,1758785444209,-193.285666,0.000252,2]
[387607115,1758785444219,-749.71,0.00025205,4]
[387607116,1758785444228,-250.0,0.00025321,2]
[387607117,1758785444237,-179.64071856,0.00025334,2]
[387607118,1758785444247,-273.0,0.00025348,2]
[387607119,1758785444256,-1564.03,0.00025379,2]
[387607120,1758785444265,-561.09,0.00025379,2]
[387607121,1758785444275,-1049.69438684,0.0002548,2]
[387607122,1758785444286,-4198.77754736,0.0002548,2]
[387607123,1758785444296,-170.1,0.00025539,5]
[387607124,1758785444305,-273.0,0.0002563,2]
[387607125,1758785444315,-1564.05736553,0.00025653,2]
[387607126,1758785444325,-561.29342909,0.00025653,2]
[387607127,1758785444334,-159.45,0.00025676,7]
[387607128,1758785444344,-4979.45748792,0.00026,10]
[387607129,1758785444354,-273.0,0.00026093,2]
[387607130,1758785444363,-273.0,0.00026162,2]
[387607131,1758785444375,-273.0,0.00026197,2]
[387607132,1758785444385,-204.32263344,0.0002622,2]
[387607133,1758785444394,-141526.15803805,0.0002622,2]
[387607134,1758785444408,-2793.47099713,0.0002622,2]
[387607135,1758785444425,-480.0,0.00019348,2]
[387607136,1758785444434,-812.58010853,0.0002622,2]
[387607137,1758785444464,-28.71955974,0.0002622,2]
[387607144,1758785446060,-232.35845115,0.00019273,2]
[387607145,1758785446124,-224.17432439,0.00019273,2]
[387607146,1758785446135,-480.0,0.00019348,2]
[387607147,1758785446145,-67.22701341,0.00019349,2]
[387607148,1758785446158,-361.3916,0.00019349,2]
[387607149,1758785446389,-51.38138659,0.00019349,2]
[387607150,1758785446399,-480.0,0.00019622,2]
[387607151,1758785446409,-398.00821296,0.000199,2]
[387607152,1758785446418,-398.00821285,0.00020972,2]
[387607153,1758785446429,-272.6021876,0.00022044,2]
[387607154,1758785446474,-49.3581878,0.00022044,2]
[387607155,1758785447036,-480.0,0.00019349,2]
[387607156,1758785447048,-76.04783745,0.00022044,2]
[387607157,1758785447058,-398.00821285,0.00023116,2]
[387607158,1758785447068,-456.53277553,0.00023307,2]
[387607159,1758785447077,-398.00821285,0.00024187,2]
[387607160,1758785447086,-398.00821285,0.00025259,3]
[387607161,1758785447096,-32387.51612403,0.0002622,2]
[387607162,1758785447106,-268.0,0.00026278,2]
[387607163,1758785447115,-398.00821285,0.00026331,5]
[387607164,1758785447124,-436.0,0.00026431,2]
[387607165,1758785447133,-268.0,0.00026473,2]
[387607166,1758785447142,-241.43,0.00026488,2]
[387607167,1758785447152,-966.4,0.000265,2]
[387607168,1758785447161,-159.45,0.00026594,7]
[387607169,1758785447170,-166.28049624,0.00026642,2]
[387607171,1758785447180,-200.4500569,0.00026642,2]
[387607173,1758785447189,-384.77737366,0.00026642,2]
[387607175,1758785447198,-8342.39183971,0.00026642,2]
[387607177,1758785447207,-350.0,0.00026642,2]
[387607179,1758785447216,-350.0,0.00026642,2]
[387607181,1758785447226,-350.0,0.00026642,2]
[387607183,1758785447235,-350.0,0.00026642,2]
[387607185,1758785447244,-460.33648398,0.00026642,2]
[387607186,1758785447253,-1000.0,0.00026642,2]
[387607190,1758785447348,-1000.0,0.00026642,2]
[387607191,1758785447362,-1044.82418463,0.00026642,2]
[387607192,1758785447371,-268.0,0.00026649,2]
[387607193,1758785447381,-268.0,0.00026792,2]
[387607194,1758785447390,-268.0,0.00026808,2]
[387607195,1758785447401,-268.0,0.00026809,2]
[387607196,1758785447411,-436.0,0.00026811,2]
[387607197,1758785447421,-268.0,0.00026948,2]
[387607198,1758785447431,-268.0,0.00026958,2]
[387607199,1758785447440,-680.92306619,0.00027,5]
[387607200,1758785447450,-600.0,0.00027,14]
[387607201,1758785447461,-268.0,0.00027013,2]
[387607202,1758785447471,-749.71,0.00027123,6]
[387607203,1758785447481,-1925.0,0.00027157,2]
[387607204,1758785447490,-63292.39712728,0.0002722,2]
[387607358,1758785783864,666.0,0.0001835,2]
[387607360,1758785849085,1000.0,0.0001835,2]
[387607373,1758785950547,1285.8829286,0.00018497,2]
[387607380,1758786023985,-168.20566004,0.00019346,2]
[387607381,1758786026892,-302.29987676,0.00019346,2]
[387607382,1758786030024,-159.9079663,0.00019346,2]
[387607383,1758786032110,-155.1,0.00019342,3]
[387607384,1758786032160,-30.61069349,0.00019346,2]
[387607387,1758786182212,152.18921921,0.00018767,2]
[387607391,1758786322930,-283.5156345,0.000193,2]
[387607392,1758786324423,-286.45392904,0.000193,2]
[387607407,1758786550434,193.285666,0.00018346,2]
[387607445,1758786632656,-3134.03832469,0.00019273,2]
[387607446,1758786632666,-539.0,0.00019299,2]
[387607447,1758786632676,-905.23713891,0.000193,2]
[387607448,1758786632685,-500.0,0.000193,2]
[387607450,1758786632695,-300.0,0.00019344,2]
[387607452,1758786632704,-276.06107382,0.00019345,2]
[387607454,1758786632713,-499.09272893,0.00019345,2]
[387607456,1758786632723,-480.0,0.00019345,2]
[387607458,1758786632732,-480.0,0.00019345,2]
[387607460,1758786632741,-481.36398288,0.00019346,2]
[387607462,1758786632751,-480.0,0.00019346,2]
[387607464,1758786632760,-480.0,0.00019346,2]
[387607466,1758786632769,-488.77372263,0.00019346,2]
[387607468,1758786632778,-480.0,0.00019346,2]
[387607470,1758786632787,-369.5317252,0.00019346,2]
[387607472,1758786632797,-199.51267242,0.00019346,2]
[387607474,1758786632806,-480.0,0.00019346,2]
[387607487,1758786632916,-480.0,0.00019346,2]
[387607489,1758786632925,-480.0,0.00019346,2]
[387607491,1758786632935,-480.0,0.00019346,2]
[387607493,1758786632944,-480.0,0.00019346,2]
[387607495,1758786632953,-480.0,0.00019346,2]
[387607497,1758786632963,-480.0,0.00019346,2]
[387607499,1758786632972,-480.0,0.00019346,2]
[387607501,1758786632981,-518.50001826,0.00019346,2]
[387607503,1758786632990,-480.0,0.00019346,2]
[387607505,1758786633000,-480.0,0.00019346,2]
[387607507,1758786633010,-500.0,0.00019346,2]
[387607509,1758786633020,-500.0,0.00019346,2]
[387607511,1758786633030,-500.0,0.00019346,2]
[387607513,1758786633040,-496.30700567,0.00019346,2]
[387607515,1758786633051,-500.0,0.00019346,2]
[387607517,1758786633062,-500.0,0.00019346,2]